Cogmind - Beta 11 @@@ ROGUE MODE // 2022.03.26 @ 23:53:24 Player: Red Box Result: Self-destructed Performance ------------- Evolutions (2) 1000 Regions Visited (5) 1000 Robots Destroyed (58) 290 Value Destroyed (1799) 1799 Prototype IDs (3) 60 Alien Tech Used (0) 0 Bonus (28) 28 TOTAL SCORE: 4177 Bonus ------- Follower Combat Kills 28 Cogmind --------- Core Integrity 401/550 Matter 290/300 Energy 27/280 System Corruption 0% Temperature Critical (540) Movement Rolling (190) Ox6 Location -8/Materials Parts ------- > --- POWER (1) -------- Heavy Ion Engine > --- PROPULSION (3) --- Armored Treads Armored Treads Compact Wheel > --- UTILITY (5) ------ Huge Storage Unit Improved Sensor Array Improved Signal Interpreter Improved Terrain Scan Processor Shield Generator > --- WEAPON (2) ------- Particle Cannon Particle Cannon > --- INVENTORY (25) --- Improved Aluminum Leg Improved Aluminum Leg Improved Aluminum Leg Improved Aluminum Leg Carbon-fiber Leg Improved Heat Sink High-capacity Storage Unit Improved Terrain Scanner Advanced Targeting Computer Particle Charger Particle Charger Improved Light Armor Plating Improved Light Armor Plating EM Pulse Cannon Light Cannon Light Cannon Light Cannon Improved Light Cannon EMP Blaster EMP Blaster EMP Blaster EMP Blaster Rocket Launcher Makeshift Sword Peak State ------------ > --- POWER ------------ Heavy Ion Engine > --- PROPULSION ------- Armored Treads Armored Treads Compact Wheel > --- UTILITY ---------- Huge Storage Unit Improved Sensor Array Improved Signal Interpreter Improved Terrain Scanner Improved Terrain Scan Processor > --- WEAPON ----------- Particle Cannon Makeshift Sword > --- INVENTORY -------- Improved Aluminum Leg Improved Aluminum Leg Improved Aluminum Leg Improved Aluminum Leg Carbon-fiber Leg Improved Heat Sink High-capacity Storage Unit Advanced Targeting Computer Particle Charger Particle Charger Hardened Medium Armor Plating Improved Light Armor Plating Shield Generator EM Pulse Cannon Particle Cannon Light Cannon Light Cannon Light Cannon Light Cannon Improved Light Cannon EMP Blaster EMP Blaster EMP Blaster EMP Blaster Rocket Launcher [Rating: 34] Favorites ----------- Power Heavy Ion Engine Engine Heavy Ion Engine Propulsion Compact Wheel Treads Armored Treads Leg Aluminum Leg Wheel Compact Wheel Utility Huge Storage Unit Device Improved Heat Sink Storage Huge Storage Unit Processor Improved Terrain Scan Processor Protection Light Armor Plating Weapon Particle Cannon Energy Gun Medium Laser Energy Cannon Particle Cannon Ballistic Cannon Light Cannon Impact Weapon Hammer Slashing Weapon Makeshift Sword Build | -11 -10 -10 -10 -9 -8 ------- Run | Scr Mat Min Exi Min Mat Slots Evolved 4 | . . . . . 4 Power . | . . . . . . Propulsion 1 | . . . . . 1 Utility 3 | . . . . . 3 Weapon . | . . . . . . Parts Attached 71 | 7 19 . 1 3 41 Power 4 | 1 2 . . . 1 Engine 4 | 1 2 . . . 1 Core . | . . . . . . Reactor . | . . . . . . Propulsion 16 | 2 4 . 1 1 8 Treads 5 | . 2 . . . 3 Leg 2 | 2 . . . . . Wheel 9 | . 2 . 1 1 5 Hover . | . . . . . . Flight . | . . . . . . Utility 30 | 2 9 . . . 19 Device 21 | 1 7 . . . 13 Storage 3 | 1 2 . . . . Processor 2 | . . . . . 2 Hackware . | . . . . . . Protection 4 | . . . . . 4 Artifact . | . . . . . . Weapon 21 | 2 4 . . 2 13 Energy Gun 2 | 2 . . . . . Energy Cannon 9 | . 2 . . 1 6 Ballistic Gun . | . . . . . . Ballistic Cannon 5 | . 2 . . . 3 Launcher . | . . . . . . Special Weapon . | . . . . . . Impact Weapon 1 | . . . . 1 . Slashing Weapon 4 | . . . . . 4 Piercing Weapon . | . . . . . . Special Melee Weapon . | . . . . . . Unidentified Prototypes 1 | . 1 . . . . Parts Lost 11 | . 3 . . 1 7 Power 3 | . 2 . . . 1 Propulsion 5 | . 1 . . 1 3 Utility 3 | . . . . . 3 Weapon . | . . . . . . Highest Loss Streak 3 | . 1 . . 1 3 To Critical Strikes . | . . . . . . Average Slot Usage (%) 98 | . 97 100 100 99 98 Engine 11 | . 13 14 14 14 8 Treads 1 | . 1 . . . 3 Leg 4 | . 16 . . . . Wheel 20 | . 8 28 28 27 23 Device 15 | . 13 14 14 14 17 Storage 11 | . 14 14 14 14 9 Processor 5 | . . . . . 12 Protection 2 | . . . . . 4 Energy Gun 2 | . 9 . . . . Energy Cannon 16 | . 17 28 28 23 7 Ballistic Cannon 3 | . 1 . . . 8 Naked Turns . | . . . . . . Heaviest Build 105 | 12 97 97 97 97 105 Greatest Support 42 | 20 40 32 32 32 42 Greatest Overweight (x) 6 | 1 3 3 3 3 6 Average Overweight (x) 2 | . 1 3 3 2 2 Largest Inventory Capacity 25 | 8 25 25 25 25 25 Average Capacity 21 | 7 13 25 25 25 25 Most Carried 25 | 8 25 25 25 25 25 Average Carried 21 | 4 12 25 24 24 24 Final Capacity 25 | 8 25 25 25 25 25 Final Carried 25 | 8 25 25 25 25 24 Class Distribution -------------------- 74% | Mutant 7% | Commander-Mutant 7% | Assassin 5% | Skirmisher 4% | Scavenger-Mutant Dominant Class ---------------- Mutant | -10/Materials Mutant | -10/Mines Commander-Mutant | -10/Exiles Mutant | -9/Mines Mutant | -8/Materials Resources | -11 -10 -10 -10 -9 -8 ----------- Run | Scr Mat Min Exi Min Mat Matter Collected 1467 | 270 185 25 . 46 941 Remotely . | . . . . . . Salvage Created 2205 | 114 776 190 . 111 1014 Parts 110 | 11 44 13 . . 42 Haulers Intercepted 2 | . 2 . . . . Recyclers Shooed 3 | 1 . . . . 2 Parts Field Recycled . | . . . . . . Retrieved Matter . | . . . . . . Parts Self-Destructed . | . . . . . . Prevented . | . . . . . . Kills | -11 -10 -10 -10 -9 -8 ------- Run | Scr Mat Min Exi Min Mat Combat Hostiles Destroyed 53 | . 20 7 . 7 19 Melee 2 | . . . . . 2 Guns 12 | . 12 . . . . Cannons 38 | . 8 7 . 7 16 AOE 1 | . . . . . 1 Classes Destroyed 10 | 2 4 . . 1 3 Tunneler 2 | 2 . . . . . Hauler 2 | . 2 . . . . Recycler 2 | 1 . . . . 1 Watcher 6 | . 2 . . . 4 Swarmer 10 | . 6 4 . . . Grunt 29 | . 14 3 . . 12 Brawler 1 | . . . . . 1 Sentry 5 | . . . . . 5 Hunter 1 | . . . . . 1 Assembled 7 | . . . . 7 . Best Kill Streak 7 | 3 5 3 . 7 4 Combat Bots Only 7 | . 5 3 . 7 3 Max Kills in Single Turn 2 | 1 2 1 . 1 2 Gunslinging 1 | . 1 . . . . Exploded 1 | . . . . . 1 Melee 1 | . . . . . 1 Uniques/NPCs Destroyed . | . . . . . . Combat | -11 -10 -10 -10 -9 -8 -------- Run | Scr Mat Min Exi Min Mat Damage Taken 2113 | . 588 81 . 183 1261 Core 364 | . 151 13 . 51 149 Absorbed by Shields 374 | . . . . . 374 Regen/Repaired (Parts) 29 | . 29 . . . . Core Remaining (%) 57 | 100 . . . 14 . Volleys Fired 178 | 4 65 13 . 16 80 Largest 2 | 2 2 2 . 2 2 Hottest 136 | 90 136 136 . 136 136 Shots Fired 345 | 8 129 25 . 31 152 Gun 93 | 8 85 . . . . Cannon 252 | . 44 25 . 31 152 Launcher . | . . . . . . Special . | . . . . . . Kinetic 94 | . . . . . 94 Thermal 245 | 8 129 25 . 31 52 Explosive . | . . . . . . Electromagnetic 6 | . . . . . 6 Robot Hit Streak 16 | 7 11 9 . 7 16 Robot Miss Streak 6 | . 6 5 . 3 4 Penetration Max . | . . . . . . Secondary Targets 1 | . 1 . . . . Max Gunslinging Chain 1 | . 1 . . . . Shots Hit Robots 211 | 7 77 14 . 18 95 Core Hits 95 | 4 35 8 . 7 41 Critical Kills . | . . . . . . Critical Parts Destroyed 1 | . . . . 1 . Critical Strikes 9 | . . . . 1 8 Blast 5 | . . . . . 5 Corrupt 2 | . . . . . 2 Smash 1 | . . . . 1 . Sever 1 | . . . . . 1 Melee Attacks 42 | . . . . 14 28 Impact 14 | . . . . 14 . Slashing 28 | . . . . . 28 Piercing . | . . . . . . Sneak Attacks 2 | . . . . 1 1 Combat Hostiles . | . . . . . . Follow-up Attacks . | . . . . . . Damage Inflicted 4121 | 85 1211 300 . 380 2145 Guns 671 | 85 586 . . . . Cannons 3020 | . 625 300 . 347 1748 Explosions 117 | . . . . . 117 Melee 313 | . . . . 33 280 Ramming . | . . . . . . Kinetic 1009 | . . . . . 1009 Thermal 2631 | 85 1211 300 . 347 688 Explosive . | . . . . . . Electromagnetic 168 | . . . . . 168 Impact 33 | . . . . 33 . Slashing 280 | . . . . . 280 Piercing . | . . . . . . Highest Corruption 1 | . 1 1 1 1 . Average Corruption 1 | . 1 1 1 1 . Corruption Purged . | . . . . . . Corruption Blocked . | . . . . . . Effects 13 | . 3 8 1 1 . Message Errors 2 | . . 1 . 1 . Matter Fused 3 | . . 3 . . . Heat Flow Errors 3 | . 2 1 . . . Energy Discharges 2 | . 1 1 . . . Data Loss (minor) 2 | . . 1 1 . . Weapon Failures 1 | . . 1 . . . Overload Shots . | . . . . . . Overflow Damage 51 | . . . . 34 17 Projectiles 1 | . . . . 1 . Explosions 5 | . . . . . 5 Melee 45 | . . . . 33 12 Knockbacks 20 | . . . . . 20 Impact . | . . . . . . Kinetic 19 | . . . . . 19 Secondary 1 | . . . . . 1 Self-Inflicted Damage 55 | . . . . . 55 Shots 1 | . . . . . 1 Rammed . | . . . . . . Targets Rammed . | . . . . . . Kicked . | . . . . . . Crushed . | . . . . . . Highest Temperature 534 | 30 202 198 . 180 534 Average Temperature 65 | 18 43 93 . 66 88 Received Heat Transfer 1073 | . 261 48 . 60 704 Effects 2 | . . . . . 2 Interference 2 | . . . . . 2 Siege Activations . | . . . . . . Robots Corrupted . | . . . . . . Combat Hostiles . | . . . . . . Parts Fried 1 | . . . . . 1 Impact Corruptions 1 | . . . . 1 . Robots Melted . | . . . . . . Combat Hostiles . | . . . . . . Parts Melted 6 | . 3 1 . . 2 Heat Transferred 5129 | 223 2623 518 . 629 1136 Parts Sabotaged . | . . . . . . Parts Stolen . | . . . . . . Parts Stripped . | . . . . . . Power Chain Reactions 1 | . . . . . 1 Missiles Intercepted . | . . . . . . Alert | -11 -10 -10 -10 -9 -8 ------- Run | Scr Mat Min Exi Min Mat Peak Influence 255 | 15 255 166 . 130 196 Initial 19 | . 9 19 . . . Average 70 | 4 104 82 . 53 50 Maximum Alert Level 1 | . 1 . . . . Low Security (%) 97 | 100 91 100 . 100 100 Level 1 2 | . 8 . . . . Level 2 . | . . . . . . Level 3 . | . . . . . . Level 4 . | . . . . . . Level 5 . | . . . . . . High Security . | . . . . . . Max Security . | . . . . . . Squads Dispatched 9 | . 6 . . . 3 Investigation 3 | . 3 . . . . Extermination . | . . . . . . Reinforcement 6 | . 3 . . . 3 Assault . | . . . . . . Garrison . | . . . . . . Intercept . | . . . . . . Searches Triggered . | . . . . . . Construction Impeded . | . . . . . . Haulers Reinforced . | . . . . . . Active Scanning Responses . | . . . . . . Cargo Convoy Interrupts . | . . . . . . Stealth | -11 -10 -10 -10 -9 -8 --------- Run | Scr Mat Min Exi Min Mat Distress Signals 3 | . . . . . 3 Communications Jammed . | . . . . . . Distress Signals . | . . . . . . Times Spotted 94 | . 33 9 . 16 36 Peak Tracking Total 7 | . 5 3 . 7 5 Tactical Retreats 7 | . 2 . . 3 2 Traps | -11 -10 -10 -10 -9 -8 ------- Run | Scr Mat Min Exi Min Mat Traps Triggered 2 | . 2 . . . . Indirectly . | . . . . . . Trap Hack Attempts . | . . . . . . Triggered . | . . . . . . Disarmed . | . . . . . . Reprogrammed . | . . . . . . Reused . | . . . . . . Traps Extracted . | . . . . . . Installed . | . . . . . . Triggered . | . . . . . . Machines | -11 -10 -10 -10 -9 -8 ---------- Run | Scr Mat Min Exi Min Mat Machines Disabled 5 | . . 1 . 1 3 Max in Single Turn 1 | . . 1 . . 1 Machines Sabotaged . | . . . . . . Garrisons Compromised . | . . . . . . Overloaded Fab Kills . | . . . . . . Hacking | -11 -10 -10 -10 -9 -8 --------- Run | Scr Mat Min Exi Min Mat Machines Accessed 14 | . 7 . 2 . 5 Terminals 9 | . 4 . . . 5 Fabricators . | . . . . . . Repair Stations 1 | . 1 . . . . Recycling Units 2 | . 2 . . . . Scanalyzers . | . . . . . . Garrison Access . | . . . . . . Total Hacks 46 | . 23 . 10 . 13 Successful 28 | . 10 . 10 . 8 Failed 18 | . 13 . . . 5 Catastrophic 4 | . 2 . . . 2 Database Lockouts . | . . . . . . Manual 27 | . 18 . . . 9 Terminals 29 | . 16 . . . 13 Fabricators . | . . . . . . Repair Stations 2 | . 2 . . . . Recycling Units 5 | . 5 . . . . Scanalyzers . | . . . . . . Garrison Access . | . . . . . . Terminal Hacks 15 | . 3 . 10 . 2 Record 10 | . . . 10 . . Robot Analysis 1 | . 1 . . . . Prototype ID Bank 1 | . . . . . 1 Unreport Threat 1 | . . . . . 1 Locate Traps 1 | . 1 . . . . Reinforcement Status 1 | . 1 . . . . Fabricator Hacks . | . . . . . . Repair Station Hacks 2 | . 2 . . . . Scan Component 1 | . 1 . . . . Repair 1 | . 1 . . . . Recycling Unit Hacks 1 | . 1 . . . . Retrieve Components 1 | . 1 . . . . Scanalyzer . | . . . . . . Garrison Access Hacks . | . . . . . . Unauthorized Hacks 10 | . 4 . . . 6 Terminals 9 | . 3 . . . 6 Track 1 | . . . . . 1 Assimilate 2 | . . . . . 2 Botnet 4 | . 2 . . . 2 Disrupt 1 | . . . . . 1 Operators 1 | . 1 . . . . Fabricators . | . . . . . . Repair Stations . | . . . . . . Recycling Units 1 | . 1 . . . . Reject 1 | . 1 . . . . Scanalyzers . | . . . . . . Garrison Access . | . . . . . . Data Cores Recovered . | . . . . . . Used . | . . . . . . Hacking Detections 12 | . 7 . . . 5 Full Trace Events 2 | . 2 . . . . Feedback Events 1 | . 1 . . . . Corruption 1 | . 1 . . . . Feedback Blocked . | . . . . . . Robot Schematics Acquired . | . . . . . . Robots Built . | . . . . . . Authchips . | . . . . . . Time . | . . . . . . Total Robot Build Rating . | . . . . . . Part Schematics Acquired . | . . . . . . Parts Built . | . . . . . . Authchips . | . . . . . . Time . | . . . . . . Total Part Build Rating . | . . . . . . Parts Repaired 1 | . 1 . . . . Time 38 | . 38 . . . . Parts Recycled . | . . . . . . Recycled Matter . | . . . . . . Retrieved Matter . | . . . . . . Retrieved Components 2 | . 2 . . . . Parts Scanalyzed . | . . . . . . Part Schematics Acquired . | . . . . . . Parts Damaged . | . . . . . . Bothacking | -11 -10 -10 -10 -9 -8 ------------ Run | Scr Mat Min Exi Min Mat Used RIF Installer . | . . . . . . Robots Hacked . | . . . . . . Non-combat . | . . . . . . Combat . | . . . . . . Robot Hacks Applied . | . . . . . . Relay Couplers Released . | . . . . . . Fabnet Peak Effective % . | . . . . . . Robots Rewired 1 | . . . 1 . . Allies Hacked . | . . . . . . Hacks Repelled . | . . . . . . Allies | -11 -10 -10 -10 -9 -8 -------- Run | Scr Mat Min Exi Min Mat Total Allies 6 | . . 4 1 . 1 Largest Group 4 | . . 4 4 4 1 Highest-Rated Group 71 | . . 71 48 48 26 Highest-Rated Ally 31 | . . 31 16 16 26 Total Orders 4 | . . . . . 4 STAY 2 | . . . . . 2 FOLLOW 2 | . . . . . 2 Ally Attacks 27 | . . 2 . 25 . Total Damage 237 | . . 36 . 201 . Kills 5 | . . 1 . 4 . Allies Corrupted . | . . . . . . Allies Melted . | . . . . . . Intel | -11 -10 -10 -10 -9 -8 ------- Run | Scr Mat Min Exi Min Mat Robot Analysis Total 1 | . 1 . . . . Derelict Logs Recovered 3 | . . 1 . 2 . Drone Launches . | . . . . . . Drone Recoveries . | . . . . . . Exploration | -11 -10 -10 -10 -9 -8 ------------- Run | Scr Mat Min Exi Min Mat Turns Passed 6519 | 110 1705 914 484 654 2652 Spaces Moved 3176 | 70 814 585 332 393 982 Core 9 | 9 . . . . . Treads 84 | . 36 . . . 48 Legs 531 | 61 470 . . . . Wheels 2552 | . 308 585 332 393 934 Hover . | . . . . . . Flight . | . . . . . . Fastest Speed 50 | 50 120 145 145 130 123 Average Speed 141 | 113 144 145 145 140 139 Slowest Speed 330 | 120 260 145 145 145 330 Overloaded Moves . | . . . . . . Propulsion Burnouts . | . . . . . . Robots Hopped . | . . . . . . Cave-ins Triggered . | . . . . . . Exploration Rate (%) 71 | 4 98 96 85 98 45 Regions Visited 5 Branch Regions 3 Pre-discovered Areas 3 | . . 1 1 1 . Known Exits Taken . | . . . . . . Unknown Exits Taken 5 | 1 1 1 1 1 . Scrap Searched 3 | . . 1 . 2 . Spaces Dug 23 | . . . . 4 19 Terrain Destroyed 26 | . . . . 4 22 Melee 23 | . . . . 4 19 Projectile . | . . . . . . AOE 3 | . . . . . 3 Terrain Rammed . | . . . . . . Walls Destroyed . | . . . . . . Machines Disabled . | . . . . . . Actions | -11 -10 -10 -10 -9 -8 --------- Run | Scr Mat Min Exi Min Mat Total 4779 | 90 1213 625 335 440 2076 Wait 1226 | . 273 28 . 8 917 Move 3171 | 69 813 584 331 392 982 Hop . | . . . . . . Pick Up 56 | 9 24 . 1 4 18 Fast Attach 19 | 7 10 . . . 2 Attach 14 | . . . . 2 12 Detach 2 | . 2 . . . . Swap 39 | . 10 . 1 1 27 Drop 31 | 1 16 . 1 3 10 Fire 178 | 4 65 13 . 16 80 Melee 42 | . . . . 14 28 Ram . | . . . . . . Kick . | . . . . . . Crush . | . . . . . . Escape Stasis . | . . . . . . Rewire 1 | . . . 1 . . Trap . | . . . . . . Miscellaneous . | . . . . . . Route ------- -11/Scrapyard -10/Materials (discovered 4 exits: [*Mat x3] / [*Min]) -10/Mines (discovered 3 exits: [*Mat x2] / *Exi) -10/Exiles -9/Mines (discovered 2 exits: *Mat x2) -8/Materials (discovered 2 exits: *Fac x2) History --------- Turn | Location | Event 2 | -11/Scrapyard | Met Revision 17 3 | -11/Scrapyard | Discovered new exit (range 15) 111 | -11/Scrapyard | Entered Materials 310 | -10/Materials | Build established: Mutant 646 | -10/Materials | Discovered new exit (range 13) 1023 | -10/Materials | Discovered new exit (range 6) 1368 | -10/Materials | Discovered new exit (range 3) 1602 | -10/Materials | Build established: Scavenger-Mutant 1646 | -10/Materials | Core integrity fell below 50% 1650 | -10/Materials | Discovered new exit (range 16) 1777 | -10/Materials | Repaired Imp. Heat Sink 1816 | -10/Materials | Entered Mines 1912 | -10/Mines | Build established: Mutant 1926 | -10/Mines | Discovered new exit (range 5) 1927 | -10/Mines | Escorted by a lone wolf Derelict 1988 | -10/Mines | Discovered new exit (range 3) 2088 | -10/Mines | Assisted by bots powering up and referring to "LRC-V3" 2171 | -10/Mines | Deemed a non-threat by the Exiles lab entrance 2171 | -10/Mines | Discovered new exit (range 5) 2206 | -10/Mines | YI-UF0 nonchalantly dropped a Grenade Launcher on the ground 2730 | -10/Mines | Entered Exiles 2730 | -10/Exiles | Found Exiles lab destroyed 2730 | -10/Exiles | Accompanied by 4 allies 3071 | -10/Exiles | Build established: Commander-Mutant 3129 | -10/Exiles | Learned location of Zion (-7) 3203 | -10/Exiles | Discovered new exit (range 10) 3214 | -10/Exiles | Entered Mines 3214 | -9/Mines | Accompanied by 4 allies 3226 | -9/Mines | Discovered new exit (range 7) 3323 | -9/Mines | Received a Rocket Launcher from a helpful Derelict 3421 | -9/Mines | Assembled infested the area 3426 | -9/Mines | Assisted by a Guerilla fighting off Assembled 3478 | -9/Mines | Core integrity fell below 20% 3500 | -9/Mines | Destroyed 7 combat bots 3579 | -9/Mines | Build established: Mutant 3635 | -9/Mines | Discovered new exit (range 5) 3689 | -9/Mines | Learned location of 1 exit from Materials 3715 | -9/Mines | A weapon hastily lodged in a ceiling crevice suddenly fell to the ground 3868 | -9/Mines | Entered Materials 3868 | -8/Materials | Evolved 4 slots: Propulsion x1, Utility x3 3869 | -8/Materials | Identified exit to Factory 4385 | -8/Materials | Discovered exit to Factory (range 16) 5092 | -8/Materials | Lost 3 parts (1n2u) 6520 | -8/Materials | Self-destructed Last Messages --------------- Imp. Assault Rifle Prc. Grenade Launcher >>Trojan(Disrupt) Trojan loaded successfully. Testing... Disruption routine running. 06401_ ALERT: Hostiles spotted, dispatching reinforcements to Terminal M005. 06402_ Administrator 3a reveals location of hidden door. 06411_ Y-45 Defender Lgt. Armor Plating severed. 06413_ Y-45 Defender destroyed. 06415_ Destroyed Heat Sink. 06421_ Y-45 Defender destroyed. 06423_ Acquired 30 matter. 06434_ Dropped Hrd. Medium Armor Plating. 06436_ Acquired 10 matter. 06439_ Acquired Imp. Light Armor Plating. 06489_ Terminal disabled. 06490_ K-01 Serf collects debris. 06514_ G-47 Trooper destroyed. Map ----- +----------------------------------------------------+ | | | | | | | ????????????????????????????????? | | ????????????????????????????????? | | ????????????????????????????????? | | ????????????????????????????????? | | ????????????????????????????????? | | ????????????????????????????????? | | ??????????????"?????????????????? | | ????????????????????????????????? | | ????????????????????????????????? | | ??????????#??????#??????????????? | | ???????#???? ? ?????????#???????? | | ??????????? ?????????#????????? | | ???? ? ?? ? !??????????????????? | | ??#?????#?? ????? ??????#????? | | ???#?????#? ?? ?? ?#????#????? | | ??#????????# #?#? ?? ???##??????? | | ?#??###????# ##????#????#?#????"? | | ????? ? o# #?#####?#?##?#?# ?? | | ????? ? ? ?+ #########??#?#?#??? | | ?#??? ?? ? # ## [##?#?#???????? | | #?#?#+#??### ## #??#???###? ?? | | ???## ##### [#= #?#?#?#?#? ? | | ###?# g @ %= o;%= ########??#??? | | ?#??####### !#%! # ######## | | #?#######?## ##[ # | | ####?#??#### ## k #* | | ??#####?#### ## [ # ? | | #?###?###### ## /# #??##### | | ?##??###?### ##+######+######## | | ?#?#?####### ## ### #### " | | ######?##### ## ??# """"" #### " | | #########?## ## ### """"" + / " | | ?#?######### #? ?## """"" #### | | ?##### r ##+### """"" #### | | ?##?##g####### !!## """"" #### | | ##?### ####### !!## """"" ##?# | | ??#?## ##?#### ## """"" ###### | | ###?## #?##?##] ## ###### | | #?#### #?##### ####+########### | | ###??# ####### #### ##########? | | ##?### ####### #### ##########? | | ?##### ########+##### ########### | | ?##### ^ ##! = ### | | ??#?########## ^^ ## !### | | ##?#?#??###### # """ ### | | ###????#?#?### ^ a # """ ##? | | ? ? ? ####?# ^ + """ #?# | +----------------------------------------------------+ Best States ------------- Heat Dissipation 45 Energy Generation 14 Energy Capacity 280 Matter Stores 300 Matter Capacity 300 Sight Range 16 Robot Scan Range 15 Terrain Scan Range 16 Terrain Scan Density 110 Armor Coverage 225 Evasion (%) 55 Recoil Reduction 2 Item Schematics ----------------- None Robot Schematics ------------------ None Fabricated ------------ Nothing Alien Tech Used ----------------- None Achievements -------------- None Challenges ------------ None Game ------ Seed MobileExplosiveSuperbattery Manual? 0 Play Time 01:02:24 Cumulative 190.8 hours Start 2022.03.26 @ 21:45:38 End 2022.03.26 @ 23:53:24 Sessions 1 Manual Loads 0 Difficulty Rogue Special Mode None Game No. 179 Rogue 179 Adventurer 0 Explorer 0 Win Type - Total 0 Types 0/0/0/0/0/0/0/0/0 Lore% 41 Gallery% 48 Achievement% 36 Wizard Run 0 Options --------- ASCII 0 Keyboard 0 Movement Mouse Keybinds 0 Fullscreen 1 Font 16/SmallcapsGlow Map View 75x55 Tactical HUD 1 Map Filters NONE Filters NONE Steam 1 RUN: b87942a4-654d-473d-b93e-a2a257bb2a3e